bitfinex/quotes_ETHUSD_20241018
["timestamp","ask_amount","ask_price","bid_price","bid_amount"]
[1729248570354,10.41116054,2628.6,2628.5,0.09248957]
[1729248584485,8.74403176,2628.6,2628.5,0.09248957]
[1729248584677,10.41116054,2628.6,2628.5,0.09248957]
[1729248586789,8.74403176,2628.6,2628.5,0.09248957]
[1729248587086,9.24002878,2628.6,2628.5,0.09248957]
[1729248590010,9.24002878,2628.6,2628.5,0.15716591]
[1729248609913,10.90715756,2628.6,2628.5,0.15716591]
[1729248610117,9.24002878,2628.6,2628.5,0.15716591]
[1729248610925,9.24002878,2628.6,2628.5,0.06467634]
[1729248611130,10.71216054,2628.6,2628.5,0.06467634]
[1729248611621,9.04503176,2628.6,2628.5,0.06467634]
[1729248611819,10.71216054,2628.6,2628.5,0.06467634]
[1729248620652,9.04503176,2628.6,2628.5,0.06467634]
[1729248620871,10.71216054,2628.6,2628.5,0.06467634]
[1729248621174,9.94356054,2628.6,2628.5,0.06467634]
[1729248621738,8.47142878,2628.6,2628.5,0.06467634]
[1729248632890,9.26752878,2628.6,2628.5,0.06467634]
[1729248635191,7.6004,2628.6,2628.5,0.06467634]
[1729248635395,9.26752878,2628.6,2628.5,0.06467634]
[1729248636604,7.6004,2628.6,2628.5,0.06467634]
[1729248636808,6.8043,2628.6,2628.5,0.06467634]
[1729248637105,8.47142878,2628.6,2628.5,0.06467634]
[1729248638298,6.8043,2628.6,2628.5,0.06467634]
[1729248638514,8.47142878,2628.6,2628.5,0.06467634]
[1729248641044,6.8043,2628.6,2628.5,0.06467634]
[1729248641198,8.47142878,2628.6,2628.5,0.06467634]
[1729248642933,6.8043,2628.6,2628.5,0.06467634]
[1729248643140,8.47142878,2628.6,2628.5,0.06467634]
[1729248652318,10.70228054,2628.6,2628.5,0.06467634]
[1729248670235,12.36940932,2628.6,2628.5,0.06467634]
[1729248670472,3.80483,2628.3,2628.2,0.601]
[1729248670629,5.47169878,2628.5,2628.2,0.601]
[1729248671080,3.80463,2628.4,2628.2,0.601]
[1729248671748,3.80474,2628.3,2628.2,0.601]
[1729248671942,5.47186878,2628.3,2628.2,0.601]
[1729248672981,1.66712878,2628.3,2628.2,0.601]
[1729248673857,5.47186878,2628.3,2628.2,0.601]
[1729248674279,1.66712878,2628.3,2628.2,0.601]
[1729248678703,5.47186878,2628.3,2628.2,0.601]
[1729248680062,5.47186878,2628.3,2628.2,0.69801392]
[1729248681000,5.47186878,2628.3,2628.2,0.09701392]
[1729248684368,6.39951866,2628.3,2628.2,0.09701392]
[1729248684706,7.17821866,2628.3,2628.2,0.09701392]
[1729248685219,11.84534744,2628.3,2628.2,0.09701392]
[1729248687702,10.17821866,2628.3,2628.2,0.09701392]
[1729248687912,11.84534744,2628.3,2628.2,0.09701392]
[1729248688484,11.82014744,2628.3,2628.2,0.09701392]
[1729248689498,10.15301866,2628.3,2628.2,0.09701392]
[1729248690409,11.82014744,2628.3,2628.2,0.09701392]
[1729248691911,10.15301866,2628.3,2628.2,0.09701392]
[1729248692116,11.82014744,2628.3,2628.2,0.09701392]
[1729248697070,3.80604,2627.4,2627.3,1.19570612]
[1729248697249,3.80647,2627.1,2626.8,1.79670612]
[1729248697529,1.66712878,2626.9,2626.8,0.601]
[1729248699822,5.47388878,2626.9,2626.8,0.601]
[1729248703130,3.80714,2626.7,2626.6,0.601]
[1729248703332,5.47426878,2626.7,2626.6,0.601]
[1729248710654,3.8072,2626.6,2626.5,0.05711902]
[1729248710867,6.02175566,2626.6,2626.5,0.05711902]
[1729248711154,6.02175566,2626.6,2626.3,0.601]
[1729248711320,5.47450878,2626.5,2626.3,0.601]
[1729248711519,1.66712878,2626.4,2626.3,0.601]
[1729248711730,3.8072,2626.6,2626.3,0.601]
[1729248711731,7.61449,2626.6,2626.3,0.601]
[1729248711936,5.47432878,2626.6,2626.3,0.601]
[1729248713059,1.66712878,2626.6,2626.3,0.601]
[1729248713424,1.66712878,2626.7,2626.3,4.98586739]
[1729248713764,1.66712878,2626.7,2626.4,0.601]
[1729248714819,1.66712878,2626.6,2626.4,0.601]
[1729248717028,1.66712878,2626.7,2626.4,0.601]
[1729248718635,5.47418878,2626.7,2626.4,0.601]
[1729248718964,1.66712878,2626.7,2626.4,0.601]
[1729248719368,5.47418878,2626.7,2626.4,0.601]
[1729248720035,3.80692,2626.8,2626.4,1.09958674]
[1729248720225,1.66712878,2626.8,2626.5,0.601]
[1729248720426,5.47397878,2626.9,2626.5,0.601]
[1729248720638,3.80685,2626.9,2626.5,4.40833]
[1729248720863,3.80685,2626.9,2626.5,5.50421229]
[1729248720864,5.47397878,2626.9,2626.5,5.50421229]
[1729248722668,1.66712878,2626.8,2626.5,5.50421229]
[1729248722864,1.66712878,2626.8,2626.5,1.69688229]
[1729248723176,1.66712878,2626.8,2626.5,0.601]
[1729248726050,1.66712878,2626.8,2626.5,0.67713945]
[1729248726451,1.66712878,2626.8,2626.5,4.40833]
[1729248728157,3.80658,2627.1,2626.5,2.26812878]
[1729248728360,3.8065,2627.1,2626.7,4.40798]
[1729248728562,5.47362878,2627.1,2626.8,7.6138]
[1729248728779,1.66712878,2627.0,2626.8,7.6138]
[1729248729370,5.47362878,2627.1,2626.8,7.6138]
[1729248730273,3.80624,2627.3,2626.9,0.601]
[1729248730473,1.66712878,2627.1,2626.9,0.601]
[1729248731905,9.27990878,2627.2,2626.9,0.601]
[1729248732087,1.66712878,2627.1,2626.9,0.601]
[1729248732394,5.47346878,2627.2,2626.9,0.601]
[1729248733500,1.66712878,2627.2,2626.9,0.601]
[1729248733673,5.47330878,2627.3,2626.9,1.8586648]
[1729248733874,5.47346878,2627.2,2626.9,1.93479264]
[1729248734172,5.47346878,2627.2,2626.9,1.8586648]
[1729248734360,1.66712878,2627.1,2626.9,1.8586648]
[1729248735379,1.66712878,2627.1,2626.9,0.601]
[1729248735702,5.47362878,2627.1,2626.9,0.601]
[1729248736005,3.80676,2626.9,2626.8,7.6138]
[1729248736208,6.29608878,2626.9,2626.8,7.6138]
[1729248741405,4.62896,2626.9,2626.8,7.6138]
[1729248741606,5.472518,2626.9,2626.8,7.6138]
[1729248741778,7.13964678,2626.9,2626.8,7.6138]
[1729248743983,6.31744678,2626.9,2626.8,7.6138]
[1729248745793,4.650318,2626.9,2626.8,7.6138]
[1729248745997,6.31744678,2626.9,2626.8,7.6138]
[1729248749691,7.61337,2627.0,2626.8,7.6138]
[1729248750024,7.61337,2627.0,2626.9,0.601]
[1729248750025,5.47374878,2627.0,2626.9,0.601]
[1729248753122,5.47374878,2627.0,2626.8,7.6138]
[1729248753296,5.47388878,2626.9,2626.8,7.6138]
[1729248757028,6.48056066,2626.9,2626.8,7.6138]
[1729248759246,5.47388878,2626.9,2626.8,7.6138]
[1729248760833,3.80676,2626.9,2626.8,7.6138]
[1729248761048,5.47388878,2626.9,2626.8,7.6138]
[1729248770261,5.47388878,2626.9,2626.8,7.69178998]
[1729248772124,3.80676,2626.9,2626.8,7.69178998]
[1729248772659,5.47388878,2626.9,2626.8,7.69178998]
[1729248775333,3.80676,2626.9,2626.8,7.69178998]
[1729248775638,5.47388878,2626.9,2626.8,7.69178998]
[1729248776135,3.80676,2626.9,2626.8,7.69178998]
[1729248776745,5.47388878,2626.9,2626.8,7.69178998]
[1729248785638,3.80663,2627.0,2626.8,7.69178998]
[1729248785840,5.47360878,2627.1,2626.9,0.601]
[1729248790864,0.7947,2627.4,2626.9,1.70913218]
[1729248791085,5.47283878,2627.7,2627.2,4.40732]
[1729248791283,1.66712878,2627.6,2627.2,4.40732]
[1729248791483,1.66712878,2627.6,2627.2,5.67852288]
[1729248791786,3.80571,2627.7,2627.2,5.67852288]
[1729248791787,3.80571,2627.7,2627.2,7.07666409]
[1729248791981,3.80553,2627.8,2627.2,3.27034409]
[1729248791982,1.66712878,2627.6,2627.2,3.27034409]
[1729248792216,1.66712878,2627.5,2627.2,1.79608505]
[1729248792390,1.66712878,2627.5,2627.2,0.601]
[1729248794785,1.66712878,2627.5,2627.3,7.6124]
[1729248794988,1.66712878,2627.6,2627.3,7.6124]
[1729248795186,3.80568,2627.7,2627.3,7.6124]
[1729248795187,1.66712878,2627.5,2627.3,7.6124]
[1729248795520,5.47287878,2627.6,2627.3,8.9338795]
[1729248799475,1.66712878,2627.5,2627.3,8.9338795]
[1729248799682,1.66712878,2627.4,2627.3,8.9338795]
[1729248801828,5.47316878,2627.4,2627.3,7.6124]
[1729248802364,6.25586878,2627.4,2627.3,7.6124]
[1729248813999,4.58874,2627.4,2627.3,7.6124]
[1729248814210,3.80593,2627.5,2627.3,7.6124]
[1729248814530,3.80576,2627.6,2627.3,8.2134]
[1729248814736,5.47288878,2627.6,2627.3,8.2134]
[1729248815336,9.27874878,2627.6,2627.3,8.2134]
[1729248815517,5.47288878,2627.6,2627.3,8.2134]
[1729248816435,1.66712878,2627.5,2627.3,8.2134]
[1729248822845,5.47302878,2627.5,2627.3,8.2134]
[1729248829808,0.7977,2627.9,2627.3,9.415374]
[1729248829809,3.80551,2627.8,2627.3,9.415374]
[1729248830126,5.47274878,2627.7,2627.3,13.221494]
[1729248830308,1.66712878,2627.6,2627.3,13.221494]
[1729248831835,1.66712878,2627.7,2627.3,13.221494]
[1729248832039,1.66712878,2627.7,2627.4,1.44165791]
[1729248832372,1.66712878,2627.6,2627.4,1.44165791]
[1729248833149,1.66712878,2627.7,2627.4,1.44165791]
[1729248833947,1.66712878,2627.7,2627.5,7.6118]
[1729248835336,7.61105,2627.8,2627.5,7.6118]
[1729248835566,5.47263878,2627.8,2627.5,8.8169517]
[1729248835749,0.7977,2627.9,2627.5,8.8169517]
[1729248836055,3.80527,2628.0,2627.6,0.601]
[1729248836951,2.49822878,2628.1,2627.7,7.6112]
[1729248836952,0.8311,2628.1,2627.7,7.6112]
[1729248837122,1.66712878,2628.1,2627.8,0.98793288]
[1729248837826,5.47219878,2628.1,2627.8,0.98793288]
[1729248839261,1.66712878,2628.1,2627.8,0.98793288]
[1729248839964,1.66712878,2628.1,2627.9,7.6106]
[1729248841365,3.80496,2628.2,2627.9,7.6106]
[1729248841564,9.27705878,2628.2,2627.9,8.85099829]
[1729248841722,1.66712878,2628.1,2627.9,8.85099829]
[1729248841924,1.66712878,2628.0,2627.9,8.85099829]
[1729248842150,5.47229878,2628.0,2627.9,8.85099829]
[1729248842365,5.47229878,2628.0,2627.9,7.6106]
[1729248842541,6.29559878,2628.0,2627.9,7.6106]
[1729248860294,6.29559878,2628.0,2627.9,7.68686179]
[1729248861975,7.96272756,2628.0,2627.9,7.68686179]
[1729248862179,10.96272756,2628.0,2627.9,7.68686179]
[1729248862412,12.5611589,2628.0,2627.9,7.68686179]
[1729248864200,10.44344718,2628.0,2627.9,7.68686179]
[1729248864413,13.17197204,2628.0,2627.9,7.68686179]
[1729248866875,9.22690134,2628.0,2627.9,7.68686179]
[1729248867082,12.5611589,2628.0,2627.9,7.68686179]
[1729248871486,9.22690134,2628.0,2627.9,7.68686179]
[1729248871820,12.5611589,2628.0,2627.9,7.68686179]
[1729248872396,3.80517,2628.0,2627.9,7.68686179]
[1729248872628,5.47229878,2628.0,2627.9,7.68686179]
[1729248874030,3.80517,2628.0,2627.9,7.68686179]
[1729248874329,5.47229878,2628.0,2627.9,7.68686179]
[1729248888804,8.47229878,2628.0,2627.9,7.68686179]
[1729248888999,10.49073266,2628.0,2627.9,7.68686179]
[1729248889198,12.15786144,2628.0,2627.9,7.68686179]
[1729248890006,10.49073266,2628.0,2627.9,7.68686179]
[1729248894436,9.26299878,2628.0,2627.9,7.68686179]
[1729248894823,8.47229878,2628.0,2627.9,7.68686179]
[1729248903181,10.13942756,2628.0,2627.9,7.68686179]
[1729248903391,10.90962756,2628.0,2627.9,7.68686179]
[1729248903685,9.24249878,2628.0,2627.9,7.68686179]
[1729248908681,8.47229878,2628.0,2627.9,7.68686179]
[1729248911502,6.80517,2628.0,2627.9,7.68686179]
[1729248911654,8.47229878,2628.0,2627.9,7.68686179]
[1729248912576,6.80517,2628.0,2627.9,7.68686179]
[1729248912900,8.47229878,2628.0,2627.9,7.68686179]
[1729248916704,6.80517,2628.0,2627.9,7.68686179]
[1729248917013,8.47229878,2628.0,2627.9,7.68686179]
[1729248932222,6.80517,2628.0,2627.9,7.68686179]
[1729248932582,8.47229878,2628.0,2627.9,7.68686179]
[1729248950437,8.47229878,2628.0,2627.9,7.76263206]
[1729248954065,6.80517,2628.0,2627.9,7.76263206]
[1729248954249,8.47229878,2628.0,2627.9,7.76263206]
[1729248957785,3.80459,2628.4,2628.0,0.601]
[1729248958088,3.80441,2628.6,2628.1,1.66712878]
[1729248958288,3.80441,2628.6,2628.2,0.67708601]
[1729248958582,3.80441,2628.6,2628.3,0.23442148]
[1729248958745,5.47153878,2628.6,2628.3,0.23442148]
[1729248958942,3.80441,2628.6,2628.3,0.23442148]
[1729248959540,3.8045,2628.5,2628.3,0.23442148]
[1729248960654,3.8045,2628.5,2628.2,0.601]
[1729248960861,3.8045,2628.5,2628.3,7.6095]
[1729248966188,3.8045,2628.5,2628.2,0.601]
[1729248966768,3.80441,2628.6,2628.4,1.66712878]
[1729248966977,3.80408,2628.8,2628.6,0.601]
[1729248967185,3.80382,2629.0,2628.7,0.22681288]
[1729248970989,5.47066878,2629.2,2628.7,1.89394166]
[1729248971165,7.60707,2629.2,2628.8,0.67707181]
[1729248971377,7.60707,2629.2,2628.9,0.25710135]
[1729248971703,3.80352,2629.2,2628.8,2.34420059]
[1729248971873,3.80352,2629.2,2628.8,0.601]
[1729248972898,7.60707,2629.2,2628.8,0.601]
[1729248973810,3.80381,2629.0,2628.8,0.601]
[1729248974010,3.80387,2628.9,2628.4,2.26812878]
[1729248974809,3.80387,2628.9,2628.5,7.6085]
[1729248975006,3.80404,2628.8,2628.5,7.6085]
[1729248975225,3.80404,2628.8,2628.6,0.82095]
[1729248975361,3.80404,2628.8,2628.7,7.6083]
[1729248975564,5.47116878,2628.8,2628.7,7.6083]
[1729248976182,3.80404,2628.8,2628.7,7.6083]
[1729248976781,5.47116878,2628.8,2628.7,7.6083]
[1729248977113,3.80404,2628.8,2628.7,7.6083]
[1729248978493,5.47116878,2628.8,2628.7,7.6083]
[1729248980014,6.22306878,2628.8,2628.7,7.6083]
[1729248980167,7.15057366,2628.8,2628.7,7.6083]
[1729248981411,3.80404,2628.8,2628.7,7.6083]
[1729248981634,7.60783,2628.9,2628.7,7.6083]
[1729248981768,3.80388,2628.9,2628.7,7.6083]
[1729248985238,5.47100878,2628.9,2628.7,7.6083]
[1729248985418,3.80388,2628.9,2628.7,7.6083]
[1729248994343,7.60786,2628.9,2628.7,7.6083]
[1729248994841,3.80388,2628.9,2628.7,7.6083]
[1729248996310,7.60786,2628.9,2628.7,7.6083]
[1729248996506,3.80388,2628.9,2628.7,7.6083]
[1729248998112,7.60783,2628.9,2628.7,7.6083]
[1729248998314,3.80388,2628.9,2628.7,7.6083]
[1729249000600,7.60786,2628.9,2628.7,7.6083]
[1729249002500,3.80388,2628.9,2628.7,7.6083]
[1729249002750,7.60787,2628.9,2628.7,7.6083]
[1729249003410,3.80388,2628.9,2628.7,7.6083]
[1729249003605,7.60783,2628.9,2628.7,7.6083]
[1729249004829,3.80388,2628.9,2628.7,7.6083]
[1729249005425,7.60786,2628.9,2628.7,7.6083]
[1729249006849,3.80388,2628.9,2628.7,7.6083]
[1729249007127,7.60783,2628.9,2628.7,7.6083]
[1729249008927,3.80388,2628.9,2628.7,7.6083]
[1729249009170,3.80366,2629.1,2628.7,8.50530762]
[1729249009374,3.80366,2629.1,2628.7,8.42923]
[1729249010240,7.60735,2629.1,2628.7,8.42923]
[1729249010665,7.60733,2629.1,2628.7,8.42923]
[1729249010982,3.80373,2629.0,2628.7,8.42923]
[1729249011188,3.80373,2629.0,2628.7,7.6083]
[1729249022132,5.47100878,2628.9,2628.7,7.6083]
[1729249022913,0.8154,2628.8,2628.7,7.6083]
[1729249023117,4.61941,2628.8,2628.7,7.6083]
[1729249023331,6.28653878,2628.8,2628.7,7.6083]
[1729249023550,7.29558066,2628.8,2628.7,7.6083]
[1729249026321,8.90330944,2628.8,2628.7,7.6083]
[1729249030834,7.23618066,2628.8,2628.7,7.6083]
[1729249033377,5.47113878,2628.8,2628.7,7.6083]
[1729249033565,3.80401,2628.8,2628.7,7.6083]
[1729249033732,5.47113878,2628.8,2628.7,7.6083]
[1729249034232,6.28803878,2628.8,2628.7,7.6083]
[1729249034437,7.29723066,2628.8,2628.7,7.6083]
[1729249035369,8.96435944,2628.8,2628.7,7.6083]
[1729249035619,7.29723066,2628.8,2628.7,7.6083]
[1729249036009,8.14745944,2628.8,2628.7,7.6083]
[1729249036214,8.95995944,2628.8,2628.7,7.6083]
[1729249040849,5.62570188,2628.8,2628.7,7.6083]
[1729249041002,7.29283066,2628.8,2628.7,7.6083]
[1729249044608,7.29283066,2628.8,2628.7,7.67769931]
[1729249045845,4.81320188,2628.8,2628.7,7.67769931]
[1729249046159,6.48033066,2628.8,2628.7,7.67769931]
[1729249047153,3.80401,2628.8,2628.7,7.67769931]
[1729249052872,5.47113878,2628.8,2628.7,7.67769931]
[1729249063618,3.80401,2628.8,2628.7,7.67769931]
[1729249063959,5.47113878,2628.8,2628.7,7.67769931]
[1729249068907,6.24253878,2628.8,2628.7,7.67769931]
[1729249071336,5.47113878,2628.8,2628.7,7.67769931]
[1729249077236,8.14290944,2628.8,2628.7,7.67769931]
[1729249077449,8.90060944,2628.8,2628.7,7.67769931]
[1729249078298,7.23348066,2628.8,2628.7,7.67769931]
[1729249079643,6.47578066,2628.8,2628.7,7.67769931]
[1729249079800,3.80401,2628.8,2628.7,7.67769931]
[1729249080326,5.47113878,2628.8,2628.7,7.67769931]
[1729249083519,3.80401,2628.8,2628.7,7.67769931]
[1729249084144,5.47113878,2628.8,2628.7,7.67769931]
[1729249090620,6.25783878,2628.8,2628.7,7.67769931]
[1729249090856,8.93113944,2628.8,2628.7,7.67769931]
[1729249093057,7.26401066,2628.8,2628.7,7.67769931]
[1729249093259,8.93113944,2628.8,2628.7,7.67769931]
[1729249094660,8.38113944,2628.8,2628.7,7.67769931]
[1729249096195,6.71401066,2628.8,2628.7,7.67769931]
[1729249097967,5.92731066,2628.8,2628.7,7.67769931]
[1729249102709,4.92113878,2628.8,2628.7,7.67769931]
[1729249119145,3.25401,2628.8,2628.7,7.67769931]
[1729249119342,4.92113878,2628.8,2628.7,7.67769931]
[1729249123340,3.25401,2628.8,2628.7,8.27869931]
[1729249123569,3.25401,2628.8,2628.7,9.10656924]
[1729249126644,4.92113878,2628.8,2628.7,9.10656924]
[1729249126849,4.92113878,2628.8,2628.7,8.27869931]
[1729249127848,4.92113878,2628.8,2628.7,7.67769931]
[1729249134696,4.92113878,2628.8,2628.7,7.74711982]
[1729249139977,4.92113878,2628.8,2628.7,7.74711982]
[1729249142907,7.40416756,2628.8,2628.7,7.74711982]
[1729249144519,7.40416756,2628.8,2628.7,7.74560469]
[1729249144726,8.52497232,2628.8,2628.7,7.74560469]
[1729249151262,6.04194354,2628.8,2628.7,7.74560469]
[1729249155472,4.92113878,2628.8,2628.7,7.74560469]
[1729249156778,3.25401,2628.8,2628.7,7.74560469]
[1729249156942,4.92113878,2628.8,2628.7,7.74560469]
[1729249162536,4.92113878,2628.8,2628.7,8.34660469]
[1729249162850,3.25401,2628.8,2628.7,8.34660469]
[1729249163263,4.92113878,2628.8,2628.7,8.34660469]
[1729249163471,3.25401,2628.8,2628.7,8.34660469]
[1729249164238,4.92113878,2628.8,2628.7,8.34660469]
[1729249164940,3.25401,2628.8,2628.7,8.34660469]
[1729249165845,4.92113878,2628.8,2628.7,8.34660469]
[1729249166488,3.25401,2628.8,2628.7,8.34660469]
[1729249166655,3.25401,2628.8,2628.7,9.18126516]
[1729249170176,4.92113878,2628.8,2628.7,9.18126516]
[1729249170380,3.25401,2628.8,2628.7,8.34660469]
[1729249174707,2.996195,2628.8,2628.7,8.34660469]
[1729249189373,2.996195,2628.8,2628.7,7.74560469]
[1729249189668,3.80401,2628.8,2628.7,7.74560469]
[1729249189853,5.47113878,2628.8,2628.7,7.74560469]
[1729249190022,3.80401,2628.8,2628.7,7.74560469]
[1729249191275,5.47113878,2628.8,2628.7,7.74560469]
[1729249192926,8.95392944,2628.8,2628.7,7.74560469]
[1729249200245,9.48638395,2628.8,2628.7,7.74560469]
[1729249200595,8.95392944,2628.8,2628.7,7.74560469]
[1729249200743,5.61967188,2628.8,2628.7,7.74560469]
[1729249200946,8.95392944,2628.8,2628.7,7.74560469]
[1729249203106,5.61967188,2628.8,2628.7,7.74560469]
[1729249203252,7.28680066,2628.8,2628.7,7.74560469]
[1729249203453,5.61967188,2628.8,2628.7,7.74560469]
[1729249203679,7.28680066,2628.8,2628.7,7.74560469]
[1729249204897,8.95392944,2628.8,2628.7,7.74560469]
[1729249205248,5.61967188,2628.8,2628.7,7.74560469]
[1729249205454,7.28680066,2628.8,2628.7,7.74560469]
[1729249206564,3.48279066,2628.8,2628.7,7.74560469]
[1729249206890,2.47812878,2628.8,2628.7,7.74560469]
[1729249207068,1.66712878,2628.8,2628.7,7.74560469]
[1729249217723,1.66712878,2628.8,2628.7,7.67618418]
[1729249217933,1.66712878,2628.8,2628.7,7.676121]
[1729249218560,4.10885756,2628.8,2628.7,7.676121]
[1729249218760,4.51974332,2628.8,2628.7,7.676121]
[1729249219266,4.51974332,2628.8,2628.7,7.60678487]
[1729249219964,4.51974332,2628.8,2628.7,7.67612806]
[1729249224976,5.57814615,2628.8,2628.7,7.67612806]
[1729249226915,4.51974332,2628.8,2628.7,7.67612806]
[1729249227091,1.18548576,2628.8,2628.7,7.67612806]
[1729249227294,0.7746,2628.8,2628.7,7.67612806]
[1729249227465,0.7568,2629.0,2628.7,7.67612806]
[1729249227907,0.7568,2629.0,2628.7,7.60678487]
[1729249228220,0.7568,2629.0,2628.8,0.06945319]
[1729249228405,1.66712878,2628.9,2628.8,0.06945319]
[1729249228567,1.66712878,2628.9,2628.7,7.60678487]
[1729249228773,1.66712878,2628.9,2628.8,0.06945319]
[1729249229612,1.66712878,2628.9,2628.7,7.60678487]
[1729249229793,0.7568,2629.0,2628.8,0.06945319]
[1729249230105,1.66712878,2628.9,2628.7,7.60678487]
[1729249230262,1.66712878,2628.8,2628.7,7.60678487]
[1729249231139,3.33425756,2628.8,2628.7,7.60678487]
[1729249233274,4.50096332,2628.8,2628.7,7.60678487]
[1729249234705,4.50096332,2628.8,2628.7,7.67620416]
[1729249236273,1.16670576,2628.8,2628.7,7.67620416]
[1729249236478,1.66712878,2628.8,2628.7,7.67620416]
[1729249241806,0.59563014,2629.4,2628.8,0.601]
[1729249242013,0.02,2629.7,2628.8,0.601]
[1729249242014,1.66712878,2629.0,2628.8,0.601]
[1729249242178,0.7819,2629.5,2628.9,0.06922719]
[1729249243044,1.66712878,2629.0,2628.9,0.06922719]
[1729249243249,0.7819,2629.5,2628.9,0.06922719]
[1729249243551,1.66712878,2629.0,2628.9,0.06922719]
[1729249244136,1.66712878,2629.0,2628.7,7.60678487]
[1729249244446,1.66712878,2628.8,2628.7,7.60678487]
[1729249246663,1.66712878,2628.8,2628.7,8.42756336]
[1729249249848,1.66712878,2628.8,2628.7,8.49700386]
[1729249250956,1.66712878,2629.1,2628.8,0.601]
[1729249251110,1.66712878,2629.0,2628.9,0.90980039]
[1729249251455,1.66712878,2629.0,2628.9,0.97902758]
[1729249256546,1.66712878,2629.1,2628.9,0.97902758]
[1729249258448,1.66712878,2629.0,2628.9,0.97902758]
[1729249258665,1.66712878,2629.1,2628.9,0.97902758]
[1729249259454,1.66712878,2629.0,2628.9,0.97902758]
[1729249260933,1.66712878,2629.1,2628.9,0.97902758]
[1729249263577,1.66712878,2629.1,2629.0,0.601]
[1729249263982,1.66712878,2629.1,2629.0,0.66996514]
[1729249264575,1.66712878,2629.2,2629.0,0.66996514]
[1729249264734,1.66712878,2629.1,2629.0,0.66996514]
[1729249267151,1.66712878,2629.2,2629.0,0.66996514]
[1729249268085,1.66712878,2629.1,2629.0,0.66996514]
[1729249270548,0.8297,2629.5,2629.0,0.66996514]
[1729249270891,1.66712878,2629.2,2629.0,0.66996514]
[1729249271088,1.66712878,2629.1,2629.0,0.66996514]
[1729249271382,1.66712878,2629.2,2629.0,0.66996514]
[1729249272080,1.66712878,2629.1,2629.0,0.66996514]
[1729249273142,0.8297,2629.5,2629.0,0.66996514]
[1729249273143,1.66712878,2629.2,2629.0,0.66996514]
[1729249274482,1.66712878,2629.1,2629.0,0.66996514]
[1729249275176,1.66712878,2629.2,2629.0,0.66996514]
[1729249275382,1.66712878,2629.1,2629.0,0.66996514]
[1729249275681,1.66712878,2629.2,2629.0,0.66996514]
[1729249275875,0.8297,2629.5,2629.0,0.66996514]
[1729249276078,1.66712878,2629.2,2629.0,0.66996514]
[1729249277348,0.7724,2630.2,2629.1,1.66712878]
[1729249277555,1.66712878,2630.0,2629.3,0.601]
[1729249277840,1.66712878,2629.9,2629.3,0.601]
[1729249278174,1.66712878,2629.9,2629.4,0.06844686]
[1729249278341,1.66712878,2629.9,2629.4,0.30210442]
[1729249278685,1.66712878,2629.9,2629.5,0.67705076]
[1729249278878,1.66712878,2629.9,2629.5,0.601]
[1729249279178,1.66712878,2629.9,2629.6,0.06823365]
[1729249279384,1.66712878,2629.8,2629.7,7.6069]
[1729249279559,1.66712878,2629.8,2629.7,7.67486231]
[1729249280113,4.15545756,2629.8,2629.7,7.67486231]
[1729249280285,5.01961483,2629.8,2629.7,7.67486231]
[1729249280485,5.01961483,2629.8,2629.7,7.6069]
[1729249280700,4.57200332,2629.8,2629.7,7.67236175]
[1729249281269,4.51590332,2629.8,2629.7,7.67236175]
[1729249281873,4.9088974,2629.8,2629.7,7.67236175]
[1729249286422,5.36650891,2629.8,2629.7,7.67236175]
[1729249286580,5.36650891,2629.8,2629.7,0.06554645]
[1729249286782,0.7845,2629.4,2628.6,0.601]
[1729249286983,3.72725164,2629.2,2628.6,0.601]
[1729249289406,4.51175164,2629.4,2628.6,0.601]
[1729249289590,4.9639268,2629.4,2628.6,0.601]
[1729249294135,0.7845,2629.4,2628.7,0.06542443]
[1729249295044,0.01,2629.5,2628.7,0.06542443]
[1729249295187,3.72725164,2629.6,2628.7,0.06542443]
[1729249295394,3.72725164,2629.6,2628.4,0.79589151]
[1729249295592,3.72725164,2629.6,2628.3,1.19508505]
[1729249295593,3.72725164,2629.6,2628.8,0.06531777]
[1729249295794,0.37372516,2629.5,2628.5,0.8719665]
[1729249296115,7.77654576,2629.8,2628.5,0.8719665]
[1729249296116,11.5037974,2629.8,2628.5,0.8719665]
[1729249296294,11.5037974,2629.8,2628.6,0.0655311]
[1729249296295,7.35,2629.8,2628.6,0.0655311]
[1729249296496,7.35,2629.8,2628.7,0.87195926]
[1729249296735,7.35,2629.8,2628.8,0.86125399]
[1729249297730,3.72725164,2629.5,2628.8,0.06536248]
[1729249297931,7.36,2629.8,2628.8,0.06536248]
[1729249297932,3.72725164,2629.3,2628.8,0.06536248]
[1729249298135,3.72725164,2629.3,2628.5,0.79589151]
[1729249298293,3.72725164,2629.5,2628.9,0.06523465]
[1729249298629,3.72725164,2629.5,2628.4,0.79589151]
[1729249299008,3.72725164,2629.5,2628.5,0.06566131]
[1729249299208,4.1009768,2629.5,2628.5,0.2713251]
[1729249299736,3.72725164,2629.7,2628.6,0.07607645]
[1729249299939,3.72725164,2629.7,2628.6,0.87196796]
[1729249300121,3.72725164,2629.7,2628.6,0.93533321]
[1729249300799,3.72725164,2629.7,2628.7,0.79589151]
[1729249300992,3.72725164,2629.7,2628.7,0.85914775]
[1729249301394,3.72725164,2629.7,2628.8,0.20542328]
[1729249301596,3.72725164,2629.7,2628.8,0.26857285]
[1729249302035,3.72725164,2629.7,2628.8,0.06314957]
[1729249302549,3.72725164,2629.7,2628.9,0.06304292]
[1729249302845,3.72725164,2629.7,2628.6,0.79589151]
[1729249303200,3.72725164,2629.5,2628.7,0.06325624]
[1729249303800,1.6681801,2629.1,2628.6,0.07607848]
[1729249304046,1.6681801,2629.1,2628.8,0.06312143]
[1729249304243,1.6681801,2629.1,2628.7,0.06322809]
[1729249304537,1.6681801,2629.1,2628.9,0.06301478]
[1729249304739,1.6681801,2629.1,2628.8,0.06312143]
[1729249304946,1.6681801,2629.1,2628.6,0.35065987]
[1729249305747,1.6681801,2628.8,2628.7,0.06322809]
[1729249306062,1.6681801,2628.9,2628.3,2.46407161]
[1729249306318,1.6681801,2628.9,2628.7,0.06324685]
[1729249306470,1.6681801,2628.9,2628.3,2.46407161]
[1729249306776,1.6681801,2628.9,2628.4,0.4351912]
[1729249307533,0.831,2628.8,2628.4,0.4351912]
[1729249310944,0.7606,2629.8,2628.7,1.6681801]
[1729249311144,1.6681801,2629.6,2629.0,1.6681801]
[1729249311464,2.4287801,2629.5,2628.9,1.6681801]
[1729249311782,2.4287801,2629.5,2629.0,0.0630254]
[1729249311973,2.4287801,2629.5,2628.8,1.6681801]
[1729249312291,2.4287801,2629.5,2629.1,0.06291876]